[Event "January 2 Late 2024"]
[Site "https://www.chess.com"]
[Date "2024.01.02"]
[Round "2"]
[White "Rios Escobar, Adan"]
[Black "Manukyan, Sargis A."]
[Result "0-1"]
[Board "141"]
[TimeControl "180+1"]
[WhiteFideId "3403645"]
[BlackFideId "13303970"]
[WhiteElo "2378"]
[BlackElo "2630"]
[WhiteTeam "CHI"]
[BlackTeam "ARM"]
[WhiteClock "0:00:06"]
[BlackClock "0:01:48"]

1. d4 {[%clk 0:03:00]}  d5 {[%clk 0:02:59]} 2. g3 {[%clk 0:02:53]}  Nf6 {[%clk 0:02:59]} 3. Nf3 {[%clk 0:02:53]}  e6 {[%clk 0:03:00]} 4. Bg2 {[%clk 0:02:48]}  Be7 {[%clk 0:03:00]} 5. O-O {[%clk 0:02:47]}  O-O {[%clk 0:03:01]} 6. c4 {[%clk 0:02:48]}  dxc4 {[%clk 0:03:01]} 7. Qc2 {[%clk 0:02:47]}  a6 {[%clk 0:03:01]} 8. a4 {[%clk 0:02:44]}  c5 {[%clk 0:03:01]} 9. dxc5 {[%clk 0:02:39]}  Bxc5 {[%clk 0:03:02]} 10. Qxc4 {[%clk 0:02:35]}  Nbd7 {[%clk 0:03:02]} 11. a5 {[%clk 0:02:23]}  b5 {[%clk 0:02:59]} 12. axb6 {[%clk 0:02:19]}  Qxb6 {[%clk 0:02:58]} 13. Nc3 {[%clk 0:02:17]}  Bb7 {[%clk 0:02:53]} 14. Na4 {[%clk 0:02:13]}  Qb4 {[%clk 0:02:52]} 15. Nd2 {[%clk 0:01:28]}  Bxg2 {[%clk 0:02:51]} 16. Kxg2 {[%clk 0:01:19]}  Qxc4 {[%clk 0:02:43]} 17. Nxc4 {[%clk 0:01:18]}  Rfd8 {[%clk 0:02:42]} 18. Bg5 {[%clk 0:01:09]}  Bb4 {[%clk 0:02:40]} 19. Rfd1 {[%clk 0:01:05]}  a5 {[%clk 0:02:39]} 20. Nab6 {[%clk 0:00:36]}  Nxb6 {[%clk 0:02:38]} 21. Nxb6 {[%clk 0:00:37]}  Rxd1 {[%clk 0:02:37]} 22. Rxd1 {[%clk 0:00:38]}  Rb8 {[%clk 0:02:36]} 23. Bxf6 {[%clk 0:00:36]}  gxf6 {[%clk 0:02:35]} 24. Nd7 {[%clk 0:00:36]}  Rb5 {[%clk 0:02:31]} 25. Nxf6+ {[%clk 0:00:36]}  Kg7 {[%clk 0:02:32]} 26. Ne4 {[%clk 0:00:35]}  Bf8 {[%clk 0:02:27]} 27. Rd2 {[%clk 0:00:23]}  h6 {[%clk 0:02:25]} 28. h4 {[%clk 0:00:22]}  f5 {[%clk 0:02:25]} 29. Nc3 {[%clk 0:00:22]}  Rb7 {[%clk 0:02:23]} 30. h5 {[%clk 0:00:21]}  Be7 {[%clk 0:02:23]} 31. f4 {[%clk 0:00:20]}  Bf6 {[%clk 0:02:23]} 32. Kf3 {[%clk 0:00:18]}  Kf7 {[%clk 0:02:23]} 33. e4 {[%clk 0:00:18]}  Rb3 {[%clk 0:02:20]} 34. e5 {[%clk 0:00:18]}  Be7 {[%clk 0:02:19]} 35. Ke2 {[%clk 0:00:18]}  Bb4 {[%clk 0:02:19]} 36. Kd3 {[%clk 0:00:17]}  Be7 {[%clk 0:02:15]} 37. Kc2 {[%clk 0:00:17]}  Rb7 {[%clk 0:02:15]} 38. Rd3 {[%clk 0:00:12]}  Bb4 {[%clk 0:02:16]} 39. Rd8 {[%clk 0:00:10]}  Rc7 {[%clk 0:02:12]} 40. Rh8 {[%clk 0:00:10]}  Kg7 {[%clk 0:02:12]} 41. Ra8 {[%clk 0:00:10]}  Rd7 {[%clk 0:02:11]} 42. Ra6 {[%clk 0:00:10]}  Kf7 {[%clk 0:02:11]} 43. Kb3 {[%clk 0:00:09]}  Rd3 {[%clk 0:02:10]} 44. Ra7+ {[%clk 0:00:09]}  Kf8 {[%clk 0:02:10]} 45. Rh7 {[%clk 0:00:09]}  Rxg3 {[%clk 0:02:05]} 46. Rxh6 {[%clk 0:00:09]}  Kf7 {[%clk 0:02:04]} 47. Rf6+ {[%clk 0:00:06]}  Ke7 {[%clk 0:02:04]} 48. h6 {[%clk 0:00:07]}  Rh3 {[%clk 0:02:02]} 49. Rg6 {[%clk 0:00:07]}  Rh4 {[%clk 0:01:58]} 50. Ka4 {[%clk 0:00:04]}  Rxf4 {[%clk 0:01:57]} 51. Kb5 {[%clk 0:00:04]}  Rh4 {[%clk 0:01:54]} 52. Kc6 {[%clk 0:00:03]}  Bxc3 {[%clk 0:01:53]} 53. bxc3 {[%clk 0:00:04]}  a4 {[%clk 0:01:53]} 54. Kb5 {[%clk 0:00:04]}  a3 {[%clk 0:01:53]} 55. Rg7+ {[%clk 0:00:04]}  Kf8 {[%clk 0:01:53]} 56. Ra7 {[%clk 0:00:05]}  Rxh6 {[%clk 0:01:53]} 57. Rxa3 {[%clk 0:00:05]}  Rh3 {[%clk 0:01:54]} 58. Ra8+ {[%clk 0:00:04]}  Kf7 {[%clk 0:01:53]} 59. c4 {[%clk 0:00:04]}  Re3 {[%clk 0:01:53]} 60. c5 {[%clk 0:00:04]}  Rxe5 {[%clk 0:01:53]} 61. Kb6 {[%clk 0:00:04]}  Re1 {[%clk 0:01:52]} 62. c6 {[%clk 0:00:03]}  Rb1+ {[%clk 0:01:52]} 63. Kc7 {[%clk 0:00:02]}  f4 {[%clk 0:01:52]} 64. Rb8 {[%clk 0:00:02]}  Rc1 {[%clk 0:01:52]} 65. Rb3 {[%clk 0:00:03]}  e5 {[%clk 0:01:52]} 66. Kb7 {[%clk 0:00:02]}  Ke6 {[%clk 0:01:51]} 67. c7 {[%clk 0:00:03]}  e4 {[%clk 0:01:51]} 68. Rb4 {[%clk 0:00:02]}  Kf5 {[%clk 0:01:51]} 69. Rb5+ {[%clk 0:00:02]}  Kg4 {[%clk 0:01:51]} 70. Kb6 {[%clk 0:00:01]}  Rxc7 {[%clk 0:01:50]} 71. Kxc7 {[%clk 0:00:01]}  e3 {[%clk 0:01:50]} 72. Re5 {[%clk 0:00:01]}  Kf3 {[%clk 0:01:47]} 73. Kd6 {[%clk 0:00:02]}  Kf2 {[%clk 0:01:48]} 74. Ke6 {[%clk 0:00:01]}  f3 {[%clk 0:01:48]} 75. Kf5 {[%clk 0:00:02]}  e2 {[%clk 0:01:49]} 76. Kg4 {[%clk 0:00:02]}  Kg2 {[%clk 0:01:48]} 77. Rf5 {[%clk 0:00:02]}  e1=Q {[%clk 0:01:48]} 78. Rxf3 {[%clk 0:00:03]}  Qd1 {[%clk 0:01:45]} 79. Kh4 {[%clk 0:00:02]}  Qxf3 {[%clk 0:01:46]} 80. Kg5 {[%clk 0:00:02]}  Kg3 {[%clk 0:01:46]} 81. Kh6 {[%clk 0:00:02]}  Qg4 {[%clk 0:01:46]} 82. Kh7 {[%clk 0:00:03]}  Kf4 {[%clk 0:01:47]} 83. Kh6 {[%clk 0:00:04]}  Kf5 {[%clk 0:01:48]} 84. Kh7 {[%clk 0:00:05]}  Kf6 {[%clk 0:01:48]} 85. Kh8 {[%clk 0:00:06]}  Qg7# {[%clk 0:01:48]} 0-1

[Event "January 2 Late 2024"]
[Site "https://www.chess.com"]
[Date "2024.01.02"]
[Round "2"]
[White "Titus, Andrew"]
[Black "Novak, Ratko"]
[Result "1-0"]
[Board "142"]
[TimeControl "180+1"]
[WhiteFideId "2059770"]
[BlackFideId "14511827"]
[WhiteElo "2607"]
[BlackElo "2378"]
[WhiteTeam "USA"]
[BlackTeam "CRO"]
[WhiteClock "0:01:06"]
[BlackClock "0:00:00"]

1. e4 {[%clk 0:03:00]}  d5 {[%clk 0:02:59]} 2. exd5 {[%clk 0:02:56]}  c6 {[%clk 0:02:58]} 3. d4 {[%clk 0:02:56]}  cxd5 {[%clk 0:02:58]} 4. Nf3 {[%clk 0:02:56]}  Nc6 {[%clk 0:02:58]} 5. h3 {[%clk 0:02:50]}  f6 {[%clk 0:02:55]} 6. Bf4 {[%clk 0:02:43]}  e6 {[%clk 0:02:51]} 7. Nbd2 {[%clk 0:02:38]}  Bd6 {[%clk 0:02:50]} 8. Bxd6 {[%clk 0:02:38]}  Qxd6 {[%clk 0:02:51]} 9. Bb5 {[%clk 0:02:38]}  Ne7 {[%clk 0:02:51]} 10. Qe2 {[%clk 0:02:37]}  O-O {[%clk 0:02:50]} 11. c4 {[%clk 0:02:32]}  Ng6 {[%clk 0:02:43]} 12. g3 {[%clk 0:02:30]}  a6 {[%clk 0:02:40]} 13. Bxc6 {[%clk 0:02:26]}  Qxc6 {[%clk 0:02:33]} 14. cxd5 {[%clk 0:02:24]}  Qxd5 {[%clk 0:02:30]} 15. h4 {[%clk 0:02:18]}  b5 {[%clk 0:02:25]} 16. h5 {[%clk 0:02:11]}  Ne7 {[%clk 0:02:24]} 17. Rc1 {[%clk 0:02:06]}  Nf5 {[%clk 0:02:03]} 18. O-O {[%clk 0:02:00]}  Nxd4 {[%clk 0:01:55]} 19. Nxd4 {[%clk 0:01:56]}  Qxd4 {[%clk 0:01:55]} 20. Rc7 {[%clk 0:01:53]}  e5 {[%clk 0:01:49]} 21. h6 {[%clk 0:01:49]}  g6 {[%clk 0:01:36]} 22. Qf3 {[%clk 0:01:42]}  Rb8 {[%clk 0:01:21]} 23. Ne4 {[%clk 0:01:34]}  Bf5 {[%clk 0:01:06]} 24. Nc5 {[%clk 0:01:30]}  Rfc8 {[%clk 0:00:50]} 25. Rxc8+ {[%clk 0:01:16]}  Bxc8 {[%clk 0:00:49]} 26. Qxf6 {[%clk 0:01:15]}  Rb7 {[%clk 0:00:21]} 27. Nxb7 {[%clk 0:01:14]}  Qd7 {[%clk 0:00:20]} 28. Nd6 {[%clk 0:01:09]}  Bb7 {[%clk 0:00:02]} 29. Nxb7 {[%clk 0:01:08]}  Qxb7 {[%clk 0:00:00]} 30. Rd1 {[%clk 0:01:06]} 1-0

[Event "January 2 Late 2024"]
[Site "https://www.chess.com"]
[Date "2024.01.02"]
[Round "2"]
[White "Dilanyan, Grigor"]
[Black "ArchibaldCerveza29"]
[Result "0-1"]
[Board "145"]
[TimeControl "180+1"]
[WhiteFideId "13303570"]
[WhiteElo "2592"]
[BlackElo "2375"]
[WhiteTeam "ARM"]
[WhiteClock "0:00:00"]
[BlackClock "0:00:25"]

1. Nf3 {[%clk 0:02:58]}  b6 {[%clk 0:02:57]} 2. g3 {[%clk 0:02:57]}  Bb7 {[%clk 0:02:58]} 3. Bg2 {[%clk 0:02:58]}  g6 {[%clk 0:02:59]} 4. O-O {[%clk 0:02:58]}  Bg7 {[%clk 0:03:00]} 5. d3 {[%clk 0:02:58]}  e6 {[%clk 0:03:00]} 6. e4 {[%clk 0:02:58]}  Ne7 {[%clk 0:03:01]} 7. Nc3 {[%clk 0:02:57]}  d6 {[%clk 0:03:01]} 8. Bg5 {[%clk 0:02:57]}  Nd7 {[%clk 0:03:02]} 9. Qd2 {[%clk 0:02:58]}  h6 {[%clk 0:03:02]} 10. Be3 {[%clk 0:02:57]}  a6 {[%clk 0:03:01]} 11. h4 {[%clk 0:02:58]}  Qc8 {[%clk 0:02:54]} 12. d4 {[%clk 0:02:55]}  b5 {[%clk 0:02:53]} 13. a3 {[%clk 0:02:54]}  Nb6 {[%clk 0:02:51]} 14. Rae1 {[%clk 0:02:54]}  Nc4 {[%clk 0:02:50]} 15. Qc1 {[%clk 0:02:54]}  Nxe3 {[%clk 0:02:50]} 16. Qxe3 {[%clk 0:02:55]}  c5 {[%clk 0:02:42]} 17. d5 {[%clk 0:02:53]}  O-O {[%clk 0:02:28]} 18. dxe6 {[%clk 0:02:33]}  Qxe6 {[%clk 0:02:28]} 19. e5 {[%clk 0:02:33]}  dxe5 {[%clk 0:02:23]} 20. Nxe5 {[%clk 0:02:33]}  Bxg2 {[%clk 0:02:22]} 21. Kxg2 {[%clk 0:02:34]}  Nf5 {[%clk 0:02:20]} 22. Qe4 {[%clk 0:02:30]}  Rae8 {[%clk 0:02:13]} 23. f4 {[%clk 0:02:10]}  Nd4 {[%clk 0:02:01]} 24. Nd5 {[%clk 0:02:09]}  Qd6 {[%clk 0:01:54]} 25. c3 {[%clk 0:02:06]}  Nf5 {[%clk 0:01:54]} 26. g4 {[%clk 0:01:51]}  Nxh4+ {[%clk 0:01:32]} 27. Kh3 {[%clk 0:01:49]}  f5 {[%clk 0:01:09]} 28. Qd3 {[%clk 0:01:40]}  g5 {[%clk 0:00:56]} 29. Nd7 {[%clk 0:01:13]}  fxg4+ {[%clk 0:00:51]} 30. Kh2 {[%clk 0:01:11]}  Rxe1 {[%clk 0:00:23]} 31. Rxe1 {[%clk 0:00:13]}  Nf3+ {[%clk 0:00:23]} 32. Kh1 {[%clk 0:00:04]}  Nxe1 {[%clk 0:00:23]} 33. N5f6+ {[%clk 0:00:05]}  Rxf6 {[%clk 0:00:23]} 34. Nxf6+ {[%clk 0:00:06]}  Qxf6 {[%clk 0:00:24]} 35. Qd5+ {[%clk 0:00:05]}  Kh7 {[%clk 0:00:24]} 36. Qe4+ {[%clk 0:00:05]}  Qg6 {[%clk 0:00:24]} 37. Qxe1 {[%clk 0:00:00]}  gxf4 {[%clk 0:00:25]} 0-1

[Event "January 2 Late 2024"]
[Site "https://www.chess.com"]
[Date "2024.01.02"]
[Round "2"]
[White "Sokolov, Andrei"]
[Black "Lin, Bryan Enming"]
[Result "0-1"]
[Board "149"]
[TimeControl "180+1"]
[WhiteFideId "11600306"]
[BlackFideId "30987121"]
[WhiteElo "2369"]
[BlackElo "2562"]
[WhiteTeam "LAT"]
[BlackTeam "USA"]
[WhiteClock "0:00:04"]
[BlackClock "0:00:54"]

1. d4 {[%clk 0:03:00]}  Nf6 {[%clk 0:02:58]} 2. c4 {[%clk 0:03:00]}  g6 {[%clk 0:02:58]} 3. Nc3 {[%clk 0:03:00]}  Bg7 {[%clk 0:02:58]} 4. e4 {[%clk 0:02:59]}  d6 {[%clk 0:02:59]} 5. h3 {[%clk 0:02:58]}  O-O {[%clk 0:02:57]} 6. Be3 {[%clk 0:02:58]}  c5 {[%clk 0:02:57]} 7. dxc5 {[%clk 0:02:56]}  Qa5 {[%clk 0:02:56]} 8. Bd3 {[%clk 0:02:50]}  dxc5 {[%clk 0:02:44]} 9. Ne2 {[%clk 0:02:39]}  Nc6 {[%clk 0:02:42]} 10. O-O {[%clk 0:02:36]}  Rd8 {[%clk 0:02:37]} 11. Qb1 {[%clk 0:02:03]}  Ne5 {[%clk 0:02:20]} 12. Rd1 {[%clk 0:01:59]}  Be6 {[%clk 0:02:18]} 13. Nd5 {[%clk 0:01:52]}  Bxd5 {[%clk 0:02:18]} 14. exd5 {[%clk 0:01:41]}  b5 {[%clk 0:02:14]} 15. cxb5 {[%clk 0:01:22]}  c4 {[%clk 0:02:05]} 16. Be4 {[%clk 0:01:09]}  Nxe4 {[%clk 0:01:59]} 17. Qxe4 {[%clk 0:01:08]}  Qxb5 {[%clk 0:01:59]} 18. Rab1 {[%clk 0:00:32]}  f5 {[%clk 0:01:30]} 19. Qc2 {[%clk 0:00:32]}  Rxd5 {[%clk 0:01:28]} 20. Rxd5 {[%clk 0:00:17]}  Qxd5 {[%clk 0:01:29]} 21. Nf4 {[%clk 0:00:16]}  Qc6 {[%clk 0:01:25]} 22. Rd1 {[%clk 0:00:12]}  Qe4 {[%clk 0:01:02]} 23. Qxe4 {[%clk 0:00:10]}  fxe4 {[%clk 0:01:03]} 24. Nd5 {[%clk 0:00:10]}  Kf7 {[%clk 0:00:57]} 25. Nc3 {[%clk 0:00:08]}  Nd3 {[%clk 0:00:54]} 26. Rd2 {[%clk 0:00:06]}  Bxc3 {[%clk 0:00:53]} 27. bxc3 {[%clk 0:00:06]}  a5 {[%clk 0:00:53]} 28. Bd4 {[%clk 0:00:06]}  a4 {[%clk 0:00:53]} 29. Kf1 {[%clk 0:00:05]}  e5 {[%clk 0:00:53]} 30. Be3 {[%clk 0:00:04]}  Rb8 {[%clk 0:00:54]} 31. Ke2 {[%clk 0:00:04]}  Rb1 {[%clk 0:00:54]} 32. f3 {[%clk 0:00:04]}  Re1# {[%clk 0:00:54]} 0-1

[Event "January 2 Late 2024"]
[Site "https://www.chess.com"]
[Date "2024.01.02"]
[Round "2"]
[White "Womacka, Mathias"]
[Black "Todev, Simeon"]
[Result "0-1"]
[Board "151"]
[TimeControl "180+1"]
[WhiteFideId "4611390"]
[BlackFideId "2925133"]
[WhiteElo "2556"]
[BlackElo "2366"]
[WhiteTeam "GER"]
[BlackTeam "BUL"]
[WhiteClock "0:00:00"]
[BlackClock "0:00:05"]

1. e4 {[%clk 0:02:58]}  g6 {[%clk 0:03:00]} 2. d4 {[%clk 0:02:55]}  Bg7 {[%clk 0:02:59]} 3. Nc3 {[%clk 0:02:56]}  d6 {[%clk 0:02:56]} 4. f4 {[%clk 0:02:56]}  Nc6 {[%clk 0:02:55]} 5. Be3 {[%clk 0:02:53]}  Nf6 {[%clk 0:02:55]} 6. Nf3 {[%clk 0:02:48]}  O-O {[%clk 0:02:54]} 7. e5 {[%clk 0:02:48]}  dxe5 {[%clk 0:02:54]} 8. dxe5 {[%clk 0:02:47]}  Ng4 {[%clk 0:02:53]} 9. Bg1 {[%clk 0:02:43]}  f6 {[%clk 0:02:46]} 10. Bc4+ {[%clk 0:02:41]}  Kh8 {[%clk 0:02:42]} 11. Qxd8 {[%clk 0:02:37]}  Rxd8 {[%clk 0:02:39]} 12. h3 {[%clk 0:02:38]}  Nh6 {[%clk 0:02:33]} 13. exf6 {[%clk 0:02:38]}  Bxf6 {[%clk 0:02:31]} 14. g4 {[%clk 0:02:27]}  Bg7 {[%clk 0:02:04]} 15. Be3 {[%clk 0:02:19]}  b5 {[%clk 0:01:52]} 16. Bxb5 {[%clk 0:02:17]}  Bb7 {[%clk 0:01:51]} 17. O-O {[%clk 0:02:03]}  Nb4 {[%clk 0:01:34]} 18. Ba4 {[%clk 0:01:54]}  Nd5 {[%clk 0:01:04]} 19. Nxd5 {[%clk 0:01:51]}  Bxd5 {[%clk 0:01:05]} 20. Ne5 {[%clk 0:01:27]}  Nf7 {[%clk 0:01:03]} 21. Nxf7+ {[%clk 0:01:22]}  Bxf7 {[%clk 0:01:03]} 22. c3 {[%clk 0:01:20]}  Rab8 {[%clk 0:01:00]} 23. Rad1 {[%clk 0:01:19]}  Bxa2 {[%clk 0:00:57]} 24. Bxa7 {[%clk 0:01:12]}  Ra8 {[%clk 0:00:55]} 25. Rxd8+ {[%clk 0:01:10]}  Rxd8 {[%clk 0:00:55]} 26. Bc5 {[%clk 0:01:03]}  Bc4 {[%clk 0:00:49]} 27. Re1 {[%clk 0:00:58]}  e5 {[%clk 0:00:43]} 28. fxe5 {[%clk 0:00:54]}  Be6 {[%clk 0:00:35]} 29. Bd4 {[%clk 0:00:47]}  Rb8 {[%clk 0:00:30]} 30. b4 {[%clk 0:00:47]}  Rd8 {[%clk 0:00:29]} 31. Bc6 {[%clk 0:00:43]}  Bh6 {[%clk 0:00:28]} 32. Ra1 {[%clk 0:00:32]}  Rf8 {[%clk 0:00:14]} 33. Ra8 {[%clk 0:00:29]}  Rxa8 {[%clk 0:00:11]} 34. Bxa8 {[%clk 0:00:30]}  Kg7 {[%clk 0:00:09]} 35. Kf2 {[%clk 0:00:28]}  Kf7 {[%clk 0:00:07]} 36. Kf3 {[%clk 0:00:28]}  Bd2 {[%clk 0:00:07]} 37. Ke4 {[%clk 0:00:26]}  Ke7 {[%clk 0:00:04]} 38. Bd5 {[%clk 0:00:25]}  Bd7 {[%clk 0:00:05]} 39. Bc5+ {[%clk 0:00:23]}  Ke8 {[%clk 0:00:04]} 40. c4 {[%clk 0:00:22]}  h5 {[%clk 0:00:04]} 41. gxh5 {[%clk 0:00:21]}  Bf5+ {[%clk 0:00:02]} 42. Kf3 {[%clk 0:00:18]}  gxh5 {[%clk 0:00:03]} 43. h4 {[%clk 0:00:17]}  Be1 {[%clk 0:00:04]} 44. e6 {[%clk 0:00:11]}  Bxh4 {[%clk 0:00:04]} 45. Kf4 {[%clk 0:00:11]}  Bg6 {[%clk 0:00:02]} 46. Ke5 {[%clk 0:00:08]}  Be7 {[%clk 0:00:03]} 47. Bc6+ {[%clk 0:00:05]}  Kd8 {[%clk 0:00:03]} 48. Bxe7+ {[%clk 0:00:04]}  Kxe7 {[%clk 0:00:04]} 49. b5 {[%clk 0:00:03]}  h4 {[%clk 0:00:05]} 50. Bg2 {[%clk 0:00:00]}  Bd3 {[%clk 0:00:05]} 0-1

[Event "January 2 Late 2024"]
[Site "https://www.chess.com"]
[Date "2024.01.02"]
[Round "2"]
[White "Kotlyar, Kirill"]
[Black "Pullela, Sricharan"]
[Result "1-0"]
[Board "152"]
[TimeControl "180+1"]
[WhiteFideId "24145599"]
[BlackFideId "30951089"]
[WhiteElo "2550"]
[BlackElo "2365"]
[WhiteTeam "RUS"]
[BlackTeam "USA"]
[WhiteClock "0:00:11"]
[BlackClock "0:00:52"]

1. e4 {[%clk 0:02:50]}  c5 {[%clk 0:02:59]} 2. Nf3 {[%clk 0:02:50]}  Nc6 {[%clk 0:03:00]} 3. d4 {[%clk 0:02:50]}  cxd4 {[%clk 0:03:01]} 4. Nxd4 {[%clk 0:02:51]}  Nf6 {[%clk 0:03:01]} 5. Qd3 {[%clk 0:02:51]}  e5 {[%clk 0:02:55]} 6. Nf3 {[%clk 0:02:45]}  Bc5 {[%clk 0:02:45]} 7. Bg5 {[%clk 0:02:41]}  h6 {[%clk 0:02:44]} 8. Bh4 {[%clk 0:02:39]}  g5 {[%clk 0:02:41]} 9. Bg3 {[%clk 0:02:39]}  Qe7 {[%clk 0:02:41]} 10. Nc3 {[%clk 0:02:35]}  d6 {[%clk 0:02:39]} 11. Be2 {[%clk 0:02:30]}  O-O {[%clk 0:02:36]} 12. h4 {[%clk 0:02:30]}  g4 {[%clk 0:02:36]} 13. Nh2 {[%clk 0:02:19]}  h5 {[%clk 0:02:33]} 14. a3 {[%clk 0:02:20]}  a6 {[%clk 0:02:22]} 15. O-O-O {[%clk 0:02:13]}  Nd4 {[%clk 0:02:21]} 16. f3 {[%clk 0:02:10]}  Be6 {[%clk 0:02:03]} 17. fxg4 {[%clk 0:02:07]}  Nxg4 {[%clk 0:02:03]} 18. Nxg4 {[%clk 0:02:02]}  hxg4 {[%clk 0:02:02]} 19. h5 {[%clk 0:01:42]}  f5 {[%clk 0:01:59]} 20. Bh4 {[%clk 0:01:39]}  Qh7 {[%clk 0:01:54]} 21. exf5 {[%clk 0:01:34]}  Bxf5 {[%clk 0:01:54]} 22. Qc4+ {[%clk 0:01:34]}  Kh8 {[%clk 0:01:51]} 23. Bd3 {[%clk 0:01:29]}  b5 {[%clk 0:01:48]} 24. Qd5 {[%clk 0:01:24]}  Nxc2 {[%clk 0:01:25]} 25. Bxc2 {[%clk 0:00:34]}  Bxc2 {[%clk 0:01:24]} 26. Rde1 {[%clk 0:00:32]}  a5 {[%clk 0:01:19]} 27. Be7 {[%clk 0:00:26]}  Rf2 {[%clk 0:01:16]} 28. Bg5 {[%clk 0:00:20]}  a4 {[%clk 0:01:09]} 29. Nxb5 {[%clk 0:00:15]}  Bb3 {[%clk 0:01:09]} 30. Qxa8+ {[%clk 0:00:15]}  Bg8 {[%clk 0:01:04]} 31. Qe4 {[%clk 0:00:15]}  Qxe4 {[%clk 0:01:02]} 32. Rxe4 {[%clk 0:00:16]}  Bd5 {[%clk 0:01:00]} 33. Ree1 {[%clk 0:00:15]}  Bxg2 {[%clk 0:01:00]} 34. Rh2 {[%clk 0:00:12]}  g3 {[%clk 0:00:59]} 35. Rh4 {[%clk 0:00:11]}  Bd5 {[%clk 0:00:57]} 36. Nc3 {[%clk 0:00:11]}  g2 {[%clk 0:00:54]} 37. Rg4 {[%clk 0:00:10]}  Bb3 {[%clk 0:00:53]} 38. Bh4 {[%clk 0:00:10]}  Rc2+ {[%clk 0:00:53]} 39. Kb1 {[%clk 0:00:10]}  g1=Q {[%clk 0:00:53]} 40. Rgxg1 {[%clk 0:00:11]}  Bxg1 {[%clk 0:00:53]} 41. Rxg1 {[%clk 0:00:12]}  Rh2 {[%clk 0:00:54]} 42. Bf6+ {[%clk 0:00:12]}  Kh7 {[%clk 0:00:54]} 43. Rg7+ {[%clk 0:00:11]}  Kh6 {[%clk 0:00:55]} 44. Rg1 {[%clk 0:00:11]}  Kxh5 {[%clk 0:00:54]} 45. Be7 {[%clk 0:00:12]}  d5 {[%clk 0:00:54]} 46. Bd6 {[%clk 0:00:11]}  e4 {[%clk 0:00:53]} 47. Bxh2 {[%clk 0:00:11]}  d4 {[%clk 0:00:54]} 48. Nxe4 {[%clk 0:00:10]}  d3 {[%clk 0:00:54]} 49. Nd2 {[%clk 0:00:11]}  Bc2+ {[%clk 0:00:54]} 50. Kc1 {[%clk 0:00:11]}  Kh4 {[%clk 0:00:55]} 51. Be5 {[%clk 0:00:11]}  Kh3 {[%clk 0:00:55]} 52. Nf3 {[%clk 0:00:11]}  d2+ {[%clk 0:00:55]} 53. Kxd2 {[%clk 0:00:10]}  Bb3 {[%clk 0:00:52]} 54. Rg3# {[%clk 0:00:11]} 1-0

[Event "January 2 Late 2024"]
[Site "https://www.chess.com"]
[Date "2024.01.02"]
[Round "2"]
[White "Berezin, Viktor"]
[Black "Bueno, Alfeu Junior Varela"]
[Result "0-1"]
[Board "155"]
[TimeControl "180+1"]
[WhiteFideId "14107872"]
[BlackFideId "2108879"]
[WhiteElo "2518"]
[BlackElo "2359"]
[WhiteTeam "UKR"]
[BlackTeam "BRA"]
[WhiteClock "0:00:03"]
[BlackClock "0:00:05"]

1. d4 {[%clk 0:02:56]}  e6 {[%clk 0:03:00]} 2. Nf3 {[%clk 0:02:55]}  f5 {[%clk 0:03:00]} 3. g3 {[%clk 0:02:52]}  b6 {[%clk 0:03:00]} 4. Bg2 {[%clk 0:02:49]}  Bb7 {[%clk 0:03:01]} 5. O-O {[%clk 0:02:50]}  Nf6 {[%clk 0:03:01]} 6. c4 {[%clk 0:02:50]}  Be7 {[%clk 0:03:02]} 7. Nc3 {[%clk 0:02:50]}  Ne4 {[%clk 0:03:02]} 8. d5 {[%clk 0:02:44]}  Nxc3 {[%clk 0:02:58]} 9. bxc3 {[%clk 0:02:45]}  O-O {[%clk 0:02:55]} 10. Bf4 {[%clk 0:02:14]}  Na6 {[%clk 0:02:48]} 11. Nd4 {[%clk 0:02:06]}  Qc8 {[%clk 0:02:37]} 12. e4 {[%clk 0:01:54]}  Bf6 {[%clk 0:02:23]} 13. e5 {[%clk 0:01:20]}  Be7 {[%clk 0:02:22]} 14. Re1 {[%clk 0:01:18]}  Nc5 {[%clk 0:02:17]} 15. a4 {[%clk 0:01:13]}  a5 {[%clk 0:01:54]} 16. Nb5 {[%clk 0:01:09]}  Rb8 {[%clk 0:01:40]} 17. Rb1 {[%clk 0:01:08]}  Ba6 {[%clk 0:01:34]} 18. d6 {[%clk 0:01:05]}  cxd6 {[%clk 0:01:33]} 19. exd6 {[%clk 0:01:03]}  Bf6 {[%clk 0:01:30]} 20. Nc7 {[%clk 0:00:54]}  Bxc4 {[%clk 0:01:25]} 21. Be5 {[%clk 0:00:43]}  Bxe5 {[%clk 0:00:55]} 22. Rxe5 {[%clk 0:00:44]}  f4 {[%clk 0:00:56]} 23. Qd4 {[%clk 0:00:43]}  Bd3 {[%clk 0:00:42]} 24. Rg5 {[%clk 0:00:40]}  Rf7 {[%clk 0:00:24]} 25. Rd1 {[%clk 0:00:40]}  Bc2 {[%clk 0:00:23]} 26. Rd2 {[%clk 0:00:39]}  Bg6 {[%clk 0:00:21]} 27. h4 {[%clk 0:00:38]}  Nb3 {[%clk 0:00:21]} 28. Qe5 {[%clk 0:00:29]}  Nxd2 {[%clk 0:00:20]} 29. h5 {[%clk 0:00:29]}  Rf5 {[%clk 0:00:19]} 30. Rxf5 {[%clk 0:00:20]}  Bxf5 {[%clk 0:00:19]} 31. h6 {[%clk 0:00:19]}  Qf8 {[%clk 0:00:15]} 32. Qb5 {[%clk 0:00:11]}  fxg3 {[%clk 0:00:13]} 33. fxg3 {[%clk 0:00:11]}  Qf7 {[%clk 0:00:12]} 34. hxg7 {[%clk 0:00:09]}  Qxg7 {[%clk 0:00:12]} 35. Qe2 {[%clk 0:00:09]}  Nb3 {[%clk 0:00:12]} 36. Nd5 {[%clk 0:00:09]}  exd5 {[%clk 0:00:10]} 37. Bxd5+ {[%clk 0:00:09]}  Kh8 {[%clk 0:00:10]} 38. Bxb3 {[%clk 0:00:09]}  Rf8 {[%clk 0:00:09]} 39. Kg2 {[%clk 0:00:08]}  Qf6 {[%clk 0:00:07]} 40. Qh5 {[%clk 0:00:07]}  Bg6 {[%clk 0:00:06]} 41. Qd5 {[%clk 0:00:04]}  Qf1+ {[%clk 0:00:05]} 42. Kh2 {[%clk 0:00:03]}  Rf2+ {[%clk 0:00:05]} 0-1